bitfinex/quotes_SOLUSD_20241126
["timestamp","ask_amount","ask_price","bid_price","bid_amount"]
[1732617491952,27.82716528,231.64,231.58,4.3181]
[1732617492155,27.82716528,231.64,231.57,43.16176528]
[1732617492368,27.82716528,231.64,231.58,27.82716528]
[1732617492866,27.82716528,231.63,231.57,15.3346]
[1732617493061,27.82716528,231.61,231.57,15.3346]
[1732617493278,47.82716528,231.72,231.52,11.2998521]
[1732617493279,27.82716528,231.58,231.53,4.3189]
[1732617493573,63.68256528,231.72,231.52,15.8363521]
[1732617493574,27.82716528,231.56,231.52,15.8363521]
[1732617493774,27.82716528,231.57,231.52,15.8363521]
[1732617493945,27.82716528,231.6,231.54,27.82716528]
[1732617494279,27.82716528,231.55,231.52,0.5017521]
[1732617494455,5.0,231.62,231.52,0.5017521]
[1732617494648,27.82716528,231.54,231.52,0.5017521]
[1732617494873,27.82716528,231.57,231.52,0.5017521]
[1732617495056,27.82716528,231.59,231.52,32.64811738]
[1732617495358,27.82716528,231.58,231.52,4.8209521]
[1732617495566,27.82716528,231.57,231.52,4.8209521]
[1732617496066,27.82716528,231.58,231.52,4.8209521]
[1732617496379,27.82716528,231.56,231.52,20.5017521]
[1732617496551,27.82716528,231.58,231.52,20.5017521]
[1732617496868,27.82716528,231.58,231.52,24.8209521]
[1732617497263,27.82716528,231.56,231.52,0.5017521]
[1732617497466,27.82716528,231.55,231.52,0.5017521]
[1732617497973,27.82716528,231.54,231.52,0.5017521]
[1732617498170,27.82716528,231.53,231.52,0.5017521]
[1732617500482,51.60404928,231.53,231.52,0.5017521]
[1732617501284,89.43121456,231.53,231.45,5.86709411]
[1732617501472,27.82716528,231.46,231.45,5.86709411]
[1732617502675,27.82716528,231.46,231.3,10.8083]
[1732617502676,15.1219,231.45,231.29,0.5017521]
[1732617502885,27.82716528,231.31,231.29,0.5017521]
[1732617503076,27.82716528,231.34,231.29,0.5017521]
[1732617503379,27.82716528,231.33,231.29,0.5017521]
[1732617504367,27.82716528,231.32,231.29,0.5017521]
[1732617504783,27.82716528,231.33,231.29,0.5017521]
[1732617505761,27.82716528,231.34,231.29,0.5017521]
[1732617505972,27.82716528,231.36,231.29,0.5017521]
[1732617506175,27.82716528,231.39,231.31,27.82716528]
[1732617506484,6.1502,231.47,231.34,27.82716528]
[1732617506485,27.82716528,231.41,231.34,27.82716528]
[1732617506688,27.82716528,231.4,231.29,0.5017521]
[1732617506980,5.0,231.43,231.31,27.82716528]
[1732617506981,15.1234,231.43,231.31,27.82716528]
[1732617507165,4.321,231.43,231.31,27.82716528]
[1732617507365,27.82716528,231.39,231.31,27.82716528]
[1732617507586,4.321,231.43,231.29,4.8252521]
[1732617507771,27.82716528,231.39,231.31,27.82716528]
[1732617507977,27.82716528,231.4,231.33,27.82716528]
[1732617508280,27.82716528,231.4,231.31,32.15026528]
[1732617508664,27.82716528,231.4,231.32,27.82716528]
[1732617509189,27.82716528,231.39,231.31,32.15026528]
[1732617509568,27.82716528,231.38,231.31,27.82716528]
[1732617509893,27.82716528,231.32,231.29,0.5017521]
[1732617510575,27.82716528,231.34,231.29,0.5017521]
[1732617510781,23.776884,231.34,231.29,0.5017521]
[1732617511386,10.8036,231.41,231.29,0.5017521]
[1732617511387,27.82716528,231.38,231.3,27.82716528]
[1732617511594,27.82716528,231.38,231.29,0.5017521]
[1732617511595,5.0,231.4,231.29,0.5017521]
[1732617511887,27.82716528,231.33,231.29,0.5017521]
[1732617512198,27.82716528,231.34,231.29,0.5017521]
[1732617512569,27.82716528,231.32,231.29,0.5017521]
[1732617513077,27.82716528,231.33,231.29,0.5017521]
[1732617513870,27.82716528,231.34,231.29,0.5017521]
[1732617514790,5.0,231.41,231.3,27.82716528]
[1732617514791,27.82716528,231.37,231.3,27.82716528]
[1732617515095,27.82716528,231.38,231.31,27.82716528]
[1732617515666,27.82716528,231.4,231.33,27.82716528]
[1732617516173,27.82716528,231.48,231.34,4.3226]
[1732617516497,27.82716528,231.43,231.36,27.82716528]
[1732617516677,27.82716528,231.45,231.38,27.82716528]
[1732617516869,27.82716528,231.46,231.38,27.82716528]
[1732617517071,27.82716528,231.46,231.34,36.617]
[1732617517072,27.82716528,231.43,231.34,4.3226]
[1732617517271,27.82716528,231.38,231.34,20.0]
[1732617517482,27.82716528,231.36,231.29,0.5017521]
[1732617517672,27.82716528,231.37,231.3,27.82716528]
[1732617517868,27.82716528,231.38,231.31,27.82716528]
[1732617518068,27.82716528,231.38,231.32,4.323]
[1732617518267,27.82716528,231.39,231.32,32.15016528]
[1732617518591,27.82716528,231.4,231.33,27.82716528]
[1732617518767,27.82716528,231.39,231.32,32.15016528]
[1732617519099,27.82716528,231.39,231.32,4.323]
[1732617519388,27.82716528,231.37,231.31,4.3231]
[1732617519593,27.82716528,231.36,231.31,4.3231]
[1732617519967,27.82716528,231.36,231.3,4.3233]
[1732617520198,27.82716528,231.36,231.29,32.65241738]
[1732617520408,27.82716528,231.37,231.29,32.65241738]
[1732617520808,27.82716528,231.38,231.31,27.82716528]
[1732617521809,27.82716528,231.36,231.29,0.5017521]
[1732617522107,27.82716528,231.31,231.29,0.5017521]
[1732617522617,27.82716528,231.32,231.29,0.5017521]
[1732617523211,27.82716528,231.31,231.29,0.5017521]
[1732617523611,27.82716528,231.32,231.29,0.5017521]
[1732617524491,27.82716528,231.33,231.29,0.5017521]
[1732617525705,4.3224,231.35,231.29,0.5017521]
[1732617525706,27.82716528,231.35,231.29,4.8251521]
[1732617526088,27.82716528,231.34,231.29,4.8251521]
[1732617528109,27.82716528,231.33,231.29,0.5017521]
[1732617528498,27.82716528,231.32,231.29,0.5017521]
[1732617529006,27.82716528,231.33,231.29,0.5017521]
[1732617529311,27.82716528,231.32,231.29,0.5017521]
[1732617530412,15.1259,231.39,231.29,0.5017521]
[1732617530413,51.60404928,231.3,231.29,0.5017521]
[1732617530588,27.82716528,231.3,231.29,0.5017521]
[1732617531641,55.92734928,231.3,231.29,0.5017521]
[1732617532133,32.15046528,231.3,231.18,4.3254]
[1732617532418,32.15046528,231.3,231.17,1.72729078]
[1732617532419,27.82716528,231.22,231.17,1.72729078]
[1732617532591,27.82716528,231.22,231.13,4.3264]
[1732617532788,27.82716528,231.22,231.15,27.82716528]
[1732617532994,27.82716528,231.2,231.13,6.02162579]
[1732617533200,23.776884,231.24,231.13,1.69522579]
[1732617533424,23.776884,231.24,231.11,16.393]
[1732617533917,27.82716528,231.2,231.13,27.82716528]
[1732617534088,27.82716528,231.25,231.18,27.82716528]
[1732617534288,27.82716528,231.2,231.13,27.82716528]
[1732617534511,27.82716528,231.19,231.12,27.82716528]
[1732617534715,23.776884,231.26,231.11,20.7197]
[1732617535092,28.100784,231.27,231.11,20.7197]
[1732617535512,38.910584,231.27,231.11,20.7197]
[1732617535918,27.82716528,231.24,231.17,27.82716528]
[1732617536108,27.82716528,231.22,231.15,27.82716528]
[1732617536717,28.100784,231.27,231.11,20.7197]
[1732617536926,28.100784,231.27,231.11,31.537]
[1732617537822,4.3232,231.31,231.17,16.393]
[1732617538115,27.82716528,231.24,231.17,16.393]
[1732617538329,17.52127693,231.24,231.17,16.393]
[1732617538614,17.52127693,231.26,231.18,17.52127693]
[1732617538915,17.52127693,231.25,231.17,16.393]
[1732617539152,5.0,231.35,231.17,20.7187]
[1732617539328,17.52127693,231.26,231.18,17.52127693]
[1732617540119,17.52127693,231.26,231.19,4.3254]
[1732617540621,17.52127693,231.27,231.19,21.84667693]
[1732617541119,17.52127693,231.28,231.22,17.52127693]
[1732617541607,17.52127693,231.27,231.19,15.139]
[1732617541808,17.52127693,231.29,231.21,17.52127693]
[1732617542212,17.52127693,231.36,231.24,4.3245]
[1732617542213,17.52127693,231.3,231.24,4.3245]
[1732617543101,17.52127693,231.29,231.24,4.3245]
[1732617543298,17.52127693,231.3,231.24,4.3245]
[1732617543516,17.52127693,231.32,231.25,17.52127693]
[1732617543711,17.52127693,231.33,231.25,17.52127693]
[1732617543918,18.71335016,231.39,231.24,4.3245]
[1732617543919,17.52127693,231.34,231.26,17.52127693]
[1732617544120,17.52127693,231.35,231.27,17.52127693]
[1732617544418,17.52127693,231.35,231.29,21.8588]
[1732617544605,12.43105016,231.39,231.29,39.38007693]
[1732617544814,17.52127693,231.36,231.29,39.38007693]
[1732617545009,17.52127693,231.34,231.29,21.8588]
[1732617545218,12.43105016,231.39,231.29,21.8588]
[1732617545219,17.52127693,231.35,231.29,21.8588]
[1732617546109,17.52127693,231.37,231.29,39.38007693]
[1732617546528,29.95232709,231.39,231.32,17.52127693]
[1732617547031,17.52127693,231.38,231.31,17.52127693]
[1732617547400,12.43105016,231.39,231.3,4.3233]
[1732617547401,29.95232709,231.39,231.32,17.52127693]
[1732617547727,12.43105016,231.39,231.33,17.52127693]
[1732617547909,12.43105016,231.39,231.3,15.1317]
[1732617547910,12.43105016,231.39,231.34,17.52127693]
[1732617548219,12.43105016,231.39,231.36,17.52127693]
[1732617549112,17.52127693,231.38,231.31,4.3232]
[1732617549506,29.95232709,231.39,231.32,17.52127693]
[1732617550021,12.43105016,231.39,231.35,17.52127693]
[1732617550698,12.43105016,231.39,231.36,4.3222]
[1732617551303,12.43105016,231.39,231.38,17.52127693]
[1732617551504,17.52127693,231.48,231.38,17.52127693]
[1732617551705,17.52127693,231.5,231.43,17.52127693]
[1732617552026,6.04204886,231.64,231.42,16.2547]
[1732617552027,4.3179,231.59,231.42,16.2547]
[1732617552204,17.52127693,231.55,231.42,16.2547]
[1732617552398,27.95914327,231.58,231.5,27.95914327]
[1732617552621,27.95914327,231.59,231.53,4.319]
[1732617552809,27.95914327,231.61,231.53,32.27814327]
[1732617553008,18.87100847,231.64,231.54,27.95914327]
[1732617553009,27.95914327,231.62,231.54,27.95914327]
[1732617553530,27.95914327,231.62,231.55,27.95914327]
[1732617553824,40.37605174,231.64,231.57,27.95914327]
[1732617554198,40.37605174,231.64,231.56,44.21384327]
[1732617554407,12.41690847,231.64,231.56,16.2547]
[1732617554624,4.315,231.75,231.6,24.3177]
[1732617554833,27.95914327,231.69,231.6,4.3177]
[1732617555003,4.315,231.75,231.6,4.3177]
[1732617556131,27.95914327,231.72,231.65,27.95914327]
[1732617556335,11.4541,231.77,231.7,27.95914327]
[1732617556716,27.95914327,231.77,231.7,27.95914327]
[1732617556910,4.3142,231.79,231.6,48.07124327]
[1732617556911,27.95914327,231.76,231.69,27.95914327]
[1732617557108,4.3142,231.79,231.6,43.07124327]
[1732617557109,27.95914327,231.75,231.68,27.95914327]
[1732617557312,27.95914327,231.76,231.69,27.95914327]
[1732617557608,27.95914327,231.7,231.64,4.317]
[1732617557804,27.95914327,231.72,231.65,27.95914327]
[1732617558014,27.95914327,231.69,231.61,4.3174]
[1732617558210,10.0,231.77,231.56,16.2547]
[1732617558432,20.0,231.74,231.57,4.3183]
[1732617558615,27.95914327,231.63,231.57,4.3183]
[1732617558807,27.95914327,231.64,231.57,32.27744327]
[1732617559010,27.95914327,231.67,231.59,27.95914327]
[1732617559629,27.95914327,231.65,231.57,27.95914327]
[1732617560016,27.95914327,231.65,231.56,20.573]
[1732617560017,27.95914327,231.67,231.59,27.95914327]
[1732617560223,4.3157,231.71,231.51,5.0]
[1732617560224,27.95914327,231.61,231.51,4.3193]
[1732617560434,27.95914327,231.61,231.54,34.13154327]
[1732617560935,27.95914327,231.6,231.53,27.95914327]
[1732617561324,4.3179,231.59,231.51,27.95914327]
[1732617561624,27.95914327,231.53,231.48,6.2819]
[1732617561809,27.95914327,231.53,231.45,27.95914327]
[1732617562535,27.95914327,231.47,231.3,10.8081]
[1732617562711,27.95914327,231.47,231.4,27.95914327]
[1732617562916,6.009,231.56,231.42,27.95914327]
[1732617562917,27.95914327,231.5,231.42,27.95914327]
[1732617563110,20.0,231.53,231.3,15.8081]
[1732617563347,43.776884,231.52,231.34,5.0]
[1732617563518,48.096184,231.52,231.35,15.1285]
[1732617563713,20.0,231.56,231.36,5.0]
[1732617563928,20.0,231.54,231.36,5.0]
[1732617564129,20.0,231.56,231.38,5.0]
[1732617564335,27.95914327,231.52,231.45,27.95914327]
[1732617565038,27.95914327,231.54,231.47,27.95914327]
[1732617565428,27.95914327,231.59,231.51,27.95914327]
[1732617565925,27.95914327,231.6,231.53,27.95914327]
[1732617566327,27.95914327,231.62,231.55,27.95914327]
[1732617566629,27.95914327,231.59,231.52,27.95914327]
[1732617566940,27.95914327,231.57,231.5,27.95914327]
[1732617567239,27.95914327,231.56,231.48,27.95914327]
[1732617567441,27.95914327,231.54,231.47,27.95914327]
[1732617567825,27.95914327,231.54,231.47,32.27924327]
[1732617568026,27.95914327,231.53,231.45,27.95914327]
[1732617568541,27.95914327,231.53,231.46,27.95914327]
[1732617569130,27.95914327,231.54,231.46,27.95914327]
[1732617569437,27.95914327,231.52,231.45,32.27964327]
[1732617569632,27.95914327,231.5,231.42,27.95914327]
[1732617569836,27.95914327,231.51,231.44,27.95914327]
[1732617570040,23.776884,231.51,231.44,27.95914327]
[1732617570225,27.95914327,231.51,231.44,27.95914327]
[1732617570423,27.95914327,231.52,231.44,27.95914327]
[1732617570627,23.776884,231.51,231.44,27.95914327]
[1732617570825,27.95914327,231.52,231.44,32.27984327]
[1732617571548,27.95914327,231.53,231.45,27.95914327]
[1732617571728,20.0,231.44,231.39,27.95914327]
[1732617572045,27.95914327,231.5,231.43,27.95914327]
[1732617572348,27.95914327,231.48,231.33,15.1298]
[1732617572725,27.95914327,231.49,231.42,27.95914327]
[1732617572915,27.95914327,231.48,231.41,27.95914327]
[1732617573251,27.95914327,231.47,231.39,27.95914327]
[1732617573621,20.1161,231.54,231.39,27.95914327]
[1732617573820,27.95914327,231.47,231.39,27.95914327]
[1732617574042,27.95914327,231.45,231.38,27.95914327]
[1732617574246,27.95914327,231.44,231.37,27.95914327]
[1732617575327,32.27974327,231.45,231.38,27.95914327]
[1732617575529,27.95914327,231.47,231.39,27.95914327]
[1732617575731,27.95914327,231.49,231.41,27.95914327]
[1732617575934,51.73602727,231.49,231.41,27.95914327]
[1732617576926,4.32,231.48,231.41,27.95914327]
[1732617577439,4.32,231.48,231.39,27.95914327]
[1732617577440,27.95914327,231.47,231.39,27.95914327]
[1732617577641,27.95914327,231.47,231.4,27.95914327]
[1732617578351,27.95914327,231.46,231.39,27.95914327]
[1732617578733,27.95914327,231.43,231.36,27.95914327]
[1732617578931,27.95914327,231.42,231.35,27.95914327]
[1732617579130,27.95914327,231.42,231.35,32.28144327]
[1732617579348,27.95914327,231.43,231.36,27.95914327]
[1732617579562,27.95914327,231.44,231.37,27.95914327]
[1732617579849,27.95914327,231.44,231.38,27.95914327]
[1732617580049,27.95914327,231.45,231.38,27.95914327]
[1732617580232,27.95914327,231.44,231.37,27.95914327]
[1732617580424,27.95914327,231.45,231.38,27.95914327]
[1732617581154,27.95914327,231.44,231.37,27.95914327]
[1732617581355,27.95914327,231.43,231.36,27.95914327]
[1732617582263,27.95914327,231.44,231.37,27.95914327]
[1732617582435,27.95914327,231.48,231.41,27.95914327]
[1732617582630,27.95914327,231.47,231.4,27.95914327]
[1732617583154,27.95914327,231.46,231.39,27.95914327]
[1732617583458,32.27874327,231.5,231.43,27.95914327]
[1732617584048,4.3196,231.5,231.44,27.95914327]
[1732617584632,27.95914327,231.52,231.45,27.95914327]
[1732617585758,32.27844327,231.52,231.44,27.95914327]
[1732617585938,27.95914327,231.54,231.47,27.95914327]
[1732617586250,16.8042,231.59,231.43,6.1366]
[1732617586251,27.95914327,231.52,231.45,27.95914327]
[1732617586647,27.95914327,231.53,231.46,27.95914327]
[1732617587232,27.95914327,231.53,231.46,32.27944327]
[1732617587432,27.95914327,231.54,231.47,27.95914327]
[1732617588349,27.95914327,231.52,231.46,4.3203]
[1732617589433,27.95914327,231.54,231.47,27.95914327]
[1732617589633,27.95914327,231.53,231.46,32.27944327]
[1732617590536,27.95914327,231.54,231.47,27.95914327]
[1732617590851,27.95914327,231.56,231.49,27.95914327]
[1732617591060,27.95914327,231.55,231.48,27.95914327]
[1732617592161,27.95914327,231.54,231.47,32.27914327]
[1732617592333,27.95914327,231.53,231.45,43.25254327]
[1732617592540,27.95914327,231.5,231.45,19.6138]
[1732617592760,27.95914327,231.52,231.45,47.57294327]
[1732617592930,32.27824327,231.53,231.46,27.95914327]
[1732617593136,27.95914327,231.52,231.45,47.57294327]
[1732617596347,17.48156217,231.52,231.45,37.09536217]
[1732617597040,17.48156217,231.52,231.45,19.6138]
[1732617597247,17.48156217,231.52,231.45,37.09536217]
[1732617597761,21.80066217,231.53,231.45,37.09536217]
[1732617598269,17.48156217,231.49,231.45,15.2934]
[1732617598456,17.48156217,231.48,231.43,6.1366]
[1732617600246,17.48156217,231.45,231.43,6.1366]
[1732617600448,17.48156217,231.44,231.35,15.2934]
[1732617600769,17.48156217,231.4,231.35,15.2934]
[1732617600946,17.48156217,231.44,231.36,17.48156217]
[1732617601151,17.48156217,231.45,231.37,17.48156217]
[1732617601457,17.48156217,231.45,231.38,17.48156217]
[1732617601675,21.80136217,231.49,231.42,17.48156217]
[1732617601871,21.80136217,231.49,231.35,26.0995]
[1732617601872,17.48156217,231.48,231.41,17.48156217]
[1732617602168,17.48156217,231.47,231.4,4.3213]
[1732617602349,4.3198,231.49,231.39,21.80316217]
[1732617602350,17.48156217,231.46,231.39,21.80316217]
[1732617602558,17.48156217,231.42,231.35,37.09726217]
[1732617602866,17.48156217,231.44,231.37,17.48156217]
[1732617603053,17.48156217,231.47,231.39,17.48156217]
[1732617603255,17.48156217,231.47,231.4,17.48156217]
[1732617603442,17.48156217,231.48,231.41,17.48156217]
[1732617603645,17.48156217,231.47,231.4,17.48156217]
[1732617603844,17.48156217,231.5,231.42,17.48156217]
[1732617604164,17.48156217,231.49,231.42,17.48156217]
[1732617604472,17.48156217,231.5,231.42,17.48156217]
[1732617604644,17.48156217,231.47,231.41,4.3213]
[1732617604848,17.48156217,231.44,231.39,4.3215]
[1732617605056,17.48156217,231.44,231.37,17.48156217]
[1732617605057,17.48156217,231.43,231.37,4.3219]
[1732617605253,17.48156217,231.42,231.35,19.6158]
[1732617605660,17.48156217,231.43,231.36,17.48156217]
[1732617605855,17.48156217,231.44,231.37,4.322]
[1732617606067,17.48156217,231.45,231.37,21.80356217]
[1732617606705,17.48156217,231.47,231.39,17.48156217]
[1732617607875,21.80146217,231.49,231.41,17.48156217]
[1732617608078,17.48156217,231.49,231.42,17.48156217]
[1732617608257,17.48156217,231.49,231.41,17.48156217]
[1732617608775,17.48156217,231.51,231.43,17.48156217]
[1732617608962,17.48156217,231.52,231.44,23.61816217]
[1732617609158,17.48156217,231.51,231.44,6.1366]
[1732617609478,17.48156217,231.5,231.44,6.1366]
[1732617609864,17.48156217,231.46,231.39,17.48156217]
[1732617610052,17.48156217,231.44,231.37,6.1366]
[1732617610255,17.48156217,231.42,231.37,10.4586]
[1732617611378,17.48156217,231.42,231.37,6.1366]
[1732617611957,17.48156217,231.42,231.37,10.4585]
[1732617612458,5.0,231.54,231.38,17.48156217]
[1732617612459,17.48156217,231.46,231.38,17.48156217]
[1732617612661,17.48156217,231.44,231.38,17.48156217]
[1732617613062,17.48156217,231.44,231.37,10.4585]
[1732617613459,17.48156217,231.42,231.35,15.2934]
[1732617613978,17.48156217,231.42,231.35,19.6158]
[1732617614204,17.48156217,231.4,231.35,19.6158]
[1732617614573,17.48156217,231.42,231.35,37.09736217]
[1732617614777,17.48156217,231.45,231.37,17.48156217]
[1732617615091,17.48156217,231.48,231.4,17.48156217]
[1732617615256,17.48156217,231.47,231.39,17.48156217]
[1732617615672,17.48156217,231.47,231.4,17.48156217]
[1732617615866,4.3196,231.5,231.38,20.0]
[1732617615867,21.80116217,231.5,231.43,4.3209]
[1732617616382,4.3192,231.53,231.46,17.48156217]
[1732617616576,4.3192,231.53,231.43,10.4434]
[1732617616577,21.80076217,231.53,231.45,17.48156217]
[1732617617161,17.48156217,231.54,231.47,17.48156217]
[1732617617467,17.48156217,231.56,231.49,17.48156217]
[1732617617870,17.48156217,231.56,231.48,17.48156217]
[1732617618097,17.48156217,231.56,231.48,4.32]
[1732617618098,17.48156217,231.53,231.48,4.32]
[1732617618383,17.48156217,231.52,231.47,16.6563]
[1732617618567,17.48156217,231.48,231.47,16.6563]
[1732617618876,17.48156217,231.5,231.47,16.6563]
[1732617619189,17.48156217,231.48,231.43,6.1225]
[1732617619359,17.48156217,231.44,231.38,6.1225]
[1732617619561,10.75315997,231.54,231.38,6.1225]
[1732617619562,17.48156217,231.41,231.38,6.1225]
[1732617619895,17.48156217,231.42,231.38,6.1225]
[1732617620058,17.48156217,231.4,231.32,40.26036217]
[1732617620264,28.00453778,231.38,231.32,22.7788]
[1732617620461,28.00453778,231.33,231.27,16.6563]
[1732617620873,28.00453778,231.32,231.27,16.6563]
[1732617621175,28.00453778,231.33,231.27,16.6563]
[1732617621765,28.00453778,231.33,231.27,16.6563]
[1732617622478,32.32713778,231.34,231.27,16.6563]
[1732617623499,1.71208973,231.45,231.27,16.6563]
[1732617623500,10.8011,231.46,231.32,28.00453778]
[1732617623663,28.00453778,231.43,231.35,28.00453778]
[1732617623861,28.00453778,231.41,231.33,28.00453778]
[1732617624064,10.8011,231.46,231.27,44.66083778]
[1732617624065,28.00453778,231.35,231.27,44.66083778]
[1732617624264,28.00453778,231.33,231.27,16.6563]
[1732617624671,28.00453778,231.37,231.29,28.00453778]
[1732617625062,28.00453778,231.41,231.34,28.00453778]
[1732617625262,28.00453778,231.41,231.32,28.00453778]
[1732617625508,28.00453778,231.42,231.34,28.00453778]
[1732617626070,28.00453778,231.41,231.33,32.32733778]
[1732617626298,28.00453778,231.4,231.33,4.3228]
[1732617626468,28.00453778,231.41,231.33,32.32733778]
[1732617626672,28.00453778,231.42,231.34,28.00453778]
[1732617626897,28.00453778,231.43,231.35,28.00453778]
[1732617627097,28.00453778,231.44,231.37,28.00453778]
[1732617627395,28.00453778,231.45,231.37,28.00453778]
[1732617627601,28.00453778,231.46,231.39,28.00453778]
[1732617627771,28.00453778,231.45,231.37,28.00453778]
[1732617627973,28.00453778,231.44,231.37,28.00453778]
[1732617628472,28.00453778,231.41,231.33,28.00453778]
[1732617628674,28.00453778,231.39,231.31,28.00453778]
[1732617629976,28.00453778,231.35,231.28,4.3236]
[1732617630189,28.00453778,231.34,231.27,16.6563]
[1732617630681,28.00453778,231.36,231.29,28.00453778]
[1732617631211,32.32623778,231.39,231.31,28.00453778]
[1732617631381,28.00453778,231.38,231.31,28.00453778]
[1732617631576,28.00453778,231.37,231.3,28.00453778]
[1732617631773,28.00453778,231.39,231.31,28.00453778]
[1732617632179,32.32543778,231.43,231.35,28.00453778]
[1732617633201,28.00453778,231.43,231.36,28.00453778]
[1732617633390,28.00453778,231.42,231.34,28.00453778]
[1732617633584,28.00453778,231.41,231.34,28.00453778]
[1732617633798,28.00453778,231.41,231.34,32.32703778]
[1732617634105,28.00453778,231.4,231.32,28.00453778]
[1732617634309,28.00453778,231.39,231.31,32.32773778]
[1732617634499,28.00453778,231.38,231.31,32.32773778]
[1732617634895,28.00453778,231.38,231.31,28.00453778]
[1732617635114,28.00453778,231.33,231.27,16.6563]
[1732617635716,28.00453778,231.34,231.27,48.98473778]
[1732617636322,28.00453778,231.35,231.28,28.00453778]
[1732617636811,4.3222,231.37,231.27,20.9802]
[1732617636812,28.00453778,231.36,231.29,28.00453778]
[1732617637020,32.32673778,231.37,231.29,28.00453778]
[1732617637402,32.32673778,231.37,231.3,28.00453778]
[1732617637793,28.00453778,231.34,231.27,16.6563]
[1732617638087,28.00453778,231.32,231.27,16.6563]
[1732617638286,28.00453778,231.34,231.27,44.66083778]
[1732617639412,28.00453778,231.35,231.27,44.66083778]
[1732617639611,32.32703778,231.35,231.27,48.98473778]
[1732617639815,4.322,231.37,231.3,28.00453778]
[1732617640025,28.00453778,231.37,231.3,28.00453778]
[1732617640394,28.00453778,231.36,231.28,28.00453778]
[1732617640609,15.1239,231.42,231.34,28.00453778]
[1732617640610,4.3211,231.42,231.34,28.00453778]
[1732617640915,28.00453778,231.43,231.36,28.00453778]
[1732617641092,28.00453778,231.41,231.34,28.00453778]
[1732617641292,28.00453778,231.4,231.32,28.00453778]
[1732617641519,28.00453778,231.4,231.32,32.32743778]
[1732617641691,28.00453778,231.41,231.34,28.00453778]
[1732617642106,28.00453778,231.42,231.32,4.3229]
[1732617642292,28.00453778,231.42,231.34,28.00453778]
[1732617642703,28.00453778,231.42,231.27,16.6563]
[1732617642704,28.00453778,231.37,231.28,4.3237]
[1732617642891,28.00453778,231.39,231.32,28.00453778]
[1732617643102,28.00453778,231.38,231.3,28.00453778]
[1732617643310,28.00453778,231.37,231.3,28.00453778]
[1732617643519,28.00453778,231.36,231.29,28.00453778]
[1732617643720,23.776884,231.43,231.35,28.00453778]
[1732617643922,28.00453778,231.43,231.36,28.00453778]
[1732617644102,28.00453778,231.45,231.38,28.00453778]
[1732617644301,32.32503778,231.46,231.39,28.00453778]
[1732617644508,28.00453778,231.45,231.38,28.00453778]
[1732617644703,28.00453778,231.43,231.35,43.02013778]
[1732617645106,28.00453778,231.42,231.35,15.0156]
[1732617645425,28.00453778,231.41,231.35,15.0156]
[1732617646101,28.00453778,231.41,231.3,20.7268]
[1732617646102,28.00453778,231.37,231.3,20.7268]
[1732617646312,17.5047915,231.37,231.3,20.7268]
[1732617646517,17.5047915,231.37,231.3,38.2315915]
[1732617647329,17.5047915,231.4,231.33,17.5047915]
[1732617647508,17.5047915,231.43,231.36,17.5047915]
[1732617648025,17.5047915,231.43,231.35,17.5047915]
[1732617648227,17.5047915,231.44,231.36,17.5047915]
[1732617648430,27.99059504,231.44,231.36,27.99059504]
[1732617648616,27.99059504,231.44,231.37,27.99059504]
[1732617648799,4.3198,231.49,231.39,27.99059504]
[1732617648800,27.99059504,231.46,231.39,27.99059504]
[1732617649003,27.99059504,231.47,231.4,27.99059504]
[1732617649527,27.99059504,231.5,231.43,27.99059504]
[1732617649723,27.99059504,231.5,231.44,27.99059504]
[1732617649923,27.99059504,231.51,231.44,27.99059504]
[1732617650130,27.99059504,231.5,231.43,27.99059504]
[1732617650339,27.99059504,231.48,231.42,15.2747]
[1732617650514,27.99059504,231.45,231.38,27.99059504]
[1732617650717,5.0,231.56,231.37,4.322]
[1732617650911,5.0,231.56,231.41,27.99059504]
[1732617651109,23.776884,231.55,231.41,27.99059504]
[1732617651312,27.99059504,231.49,231.42,27.99059504]
[1732617651612,32.31029504,231.5,231.42,27.99059504]
[1732617652005,27.99059504,231.52,231.45,27.99059504]
[1732617652209,27.99059504,231.5,231.43,27.99059504]
[1732617652416,27.99059504,231.49,231.42,27.99059504]
[1732617652839,27.99059504,231.51,231.44,27.99059504]
[1732617653041,27.99059504,231.53,231.46,27.99059504]
[1732617653211,27.99059504,231.54,231.47,27.99059504]
[1732617653635,27.99059504,231.53,231.46,27.99059504]
[1732617654237,34.63339504,231.6,231.47,27.99059504]
[1732617654238,27.99059504,231.54,231.47,27.99059504]
[1732617654431,27.99059504,231.57,231.49,27.99059504]
[1732617654736,27.99059504,231.56,231.49,27.99059504]
[1732617654916,27.99059504,231.59,231.52,27.99059504]
[1732617655309,27.99059504,231.59,231.51,27.99059504]
[1732617655716,27.99059504,231.59,231.52,27.99059504]
[1732617655943,27.99059504,231.59,231.51,27.99059504]
[1732617656239,27.99059504,231.59,231.51,32.30999504]